fUSD/lending_fUSD_20251024
["ID","MTS","AMOUNT","RATE_DAILY","PERIOD"]
[392311915,1761325860061,-500.0,0.00039178,30]
[392311916,1761325860070,-545.39,0.00039178,30]
[392311917,1761325860085,-431.29141091,0.00039178,30]
[392311918,1761325860095,-500.0,0.00039178,30]
[392311919,1761325860104,-592.08755843,0.00039178,30]
[392311920,1761325860115,-500.0,0.00039178,30]
[392311921,1761325860127,-500.0,0.00039178,30]
[392311922,1761325860136,-500.0,0.00039178,30]
[392311923,1761325860146,-500.0,0.00039178,30]
[392311924,1761325860159,-500.0,0.00039178,30]
[392311925,1761325860170,-500.0,0.00039178,30]
[392311926,1761325860179,-500.0,0.00039178,30]
[392311927,1761325860189,-500.0,0.00039178,30]
[392311928,1761325860198,-500.0,0.00039178,30]
[392311929,1761325860208,-731.11,0.00039178,30]
[392311930,1761325860218,-500.0,0.00039178,30]
[392311931,1761325860227,-500.0,0.00039178,30]
[392311932,1761325860237,-608.13,0.00039178,30]
[392311933,1761325860247,-500.0,0.00039178,30]
[392311934,1761325860257,-500.0,0.00039178,2]
[392311935,1761325860267,-500.0,0.00039178,30]
[392311936,1761325860276,-500.0,0.00039178,30]
[392311937,1761325860286,-500.0,0.00039178,30]
[392311938,1761325860296,-587.61,0.00039178,30]
[392311939,1761325860306,-546.68,0.00039178,30]
[392311940,1761325860317,-500.0,0.00039178,30]
[392311941,1761325860327,-500.0,0.00039178,30]
[392311942,1761325860336,-544.06,0.00039178,30]
[392311943,1761325860346,-500.0,0.00039178,30]
[392311944,1761325860356,-500.0,0.00039178,30]
[392311945,1761325860365,-500.0,0.00039178,30]
[392311946,1761325860375,-535.3,0.00039178,30]
[392311947,1761325860384,-524.46,0.00039178,30]
[392311948,1761325860394,-500.0,0.00039178,30]
[392311949,1761325860403,-500.0,0.00039178,30]
[392311950,1761325860415,-500.0,0.00039178,30]
[392311951,1761325860424,-500.0,0.00039178,30]
[392311952,1761325860433,-500.0,0.00039178,30]
[392311953,1761325860443,-500.0,0.00039178,30]
[392311954,1761325860452,-564.68,0.00039178,30]
[392311955,1761325860462,-500.0,0.00039178,30]
[392311956,1761325860471,-648.15,0.00039178,30]
[392311957,1761325860481,-772.37,0.00039178,30]
[392311958,1761325860490,-500.0,0.00039178,30]
[392311959,1761325860500,-500.0,0.00039178,30]
[392311960,1761325860509,-500.0,0.00039178,30]
[392311961,1761325860519,-500.0,0.00039178,30]
[392311962,1761325860528,-500.0,0.00039178,30]
[392311963,1761325860538,-362.35616441,0.00039178,30]
[392311964,1761325860548,-500.0,0.00039178,30]
[392311965,1761325860558,-500.0,0.00039178,30]
[392311966,1761325860567,-172.35635685,0.00039178,2]
[392311967,1761325860577,-500.0,0.00039178,30]
[392311968,1761325860587,-500.0,0.00039178,30]
[392311969,1761325860597,-500.0,0.00039178,30]
[392311970,1761325860607,-500.0,0.00039178,30]
[392311971,1761325860617,-500.0,0.00039178,30]
[392311972,1761325860627,-500.0,0.00039178,30]
[392311973,1761325860638,-500.0,0.00039178,30]
[392311974,1761325860648,-225.09197661,0.00039178,30]
[392311975,1761325860658,-500.0,0.00039178,30]
[392311976,1761325860667,-738.39,0.00039178,30]
[392311977,1761325860678,-500.0,0.00039178,30]
[392311978,1761325860688,-500.0,0.00039178,30]
[392311979,1761325860697,-151.0,0.00039178,120]
[392311980,1761325860706,-229.3365102,0.00039178,30]
[392311981,1761325860716,-1665.92,0.00039178,2]
[392311982,1761325860726,-500.0,0.00039178,30]
[392311983,1761325860736,-500.0,0.00039178,30]
[392311984,1761325860746,-151.0,0.00039178,120]
[392311985,1761325860755,-500.0,0.00039178,30]
[392311986,1761325860765,-153.04558204,0.00039178,60]
[392311987,1761325860774,-243.93799564,0.00039178,30]
[392311988,1761325860784,-500.0,0.00039178,30]
[392311989,1761325860793,-500.0,0.00039178,30]
[392311990,1761325860803,-500.0,0.00039178,30]
[392311991,1761325860813,-500.0,0.00039178,30]
[392311992,1761325860824,-555.86,0.00039178,30]
[392311993,1761325860834,-500.0,0.00039178,30]
[392311994,1761325860844,-500.0,0.00039178,30]
[392311995,1761325860857,-598.83,0.00039178,30]
[392311996,1761325860867,-500.0,0.00039178,30]
[392311997,1761325860876,-634.12,0.00039178,30]
[392311998,1761325860886,-500.0,0.00039178,30]
[392311999,1761325860896,-500.0,0.00039178,30]
[392312000,1761325860906,-500.0,0.00039178,30]
[392312001,1761325860916,-500.0,0.00039178,30]
[392312002,1761325860926,-500.0,0.00039178,30]
[392312003,1761325860935,-151.0,0.00039178,120]
[392312004,1761325860946,-500.0,0.00039178,30]
[392312005,1761325860955,-504.9,0.00039178,30]
[392312006,1761325860964,-500.0,0.00039178,30]
[392312007,1761325860974,-274.074325,0.00039178,120]
[392312008,1761325860983,-500.0,0.00039178,30]
[392312009,1761325860993,-597.94,0.00039178,30]
[392312010,1761325861003,-500.0,0.00039178,30]
[392312011,1761325861013,-514.4,0.00039178,30]
[392312012,1761325861023,-500.0,0.00039178,30]
[392312013,1761325861034,-500.0,0.00039178,30]
[392312014,1761325861043,-500.0,0.00039178,30]
[392312015,1761325861053,-500.0,0.00039178,30]
[392312016,1761325861063,-300.0,0.00039178,2]
[392312017,1761325861073,-500.0,0.00039178,30]
[392312018,1761325861088,-500.0,0.00039178,30]
[392312019,1761325861100,-500.0,0.00039178,30]
[392312020,1761325861110,-504.43,0.00039178,30]
[392312021,1761325861119,-500.0,0.00039178,30]
[392312022,1761325861130,-500.0,0.00039178,30]
[392312023,1761325861140,-500.0,0.00039178,30]
[392312024,1761325861150,-500.0,0.00039178,30]
[392312025,1761325861162,-500.0,0.00039178,30]
[392312026,1761325861171,-626.73026481,0.00039178,30]
[392312027,1761325861181,-500.0,0.00039178,30]
[392312028,1761325861190,-500.0,0.00039178,30]
[392312029,1761325861200,-500.0,0.00039178,30]
[392312030,1761325861211,-500.0,0.00039178,30]
[392312031,1761325861221,-500.0,0.00039178,30]
[392312032,1761325861231,-500.0,0.00039178,30]
[392312033,1761325861241,-500.0,0.00039178,30]
[392312034,1761325861250,-500.0,0.00039178,30]
[392312035,1761325861259,-743.61,0.00039178,30]
[392312036,1761325861268,-500.0,0.00039178,30]
[392312037,1761325861278,-500.0,0.00039178,30]
[392312038,1761325861289,-500.0,0.00039178,30]
[392312039,1761325861300,-533.0,0.00039178,30]
[392312040,1761325861309,-500.0,0.00039178,30]
[392312041,1761325861319,-501.84,0.00039178,30]
[392312042,1761325861330,-516.00682886,0.00039178,30]
[392312043,1761325861339,-500.0,0.00039178,30]
[392312044,1761325861351,-500.0,0.00039178,30]
[392312045,1761325861360,-500.0,0.00039178,30]
[392312046,1761325861374,-500.0,0.00039178,30]
[392312047,1761325861384,-500.0,0.00039178,30]
[392312048,1761325861393,-500.0,0.00039178,30]
[392312049,1761325861402,-500.0,0.00039178,30]
[392312050,1761325861412,-500.0,0.00039178,30]
[392312051,1761325861421,-500.0,0.00039178,30]
[392312052,1761325861431,-500.0,0.00039178,30]
[392312053,1761325861441,-500.0,0.00039178,30]
[392312054,1761325861451,-550.38,0.00039178,30]
[392312055,1761325861461,-500.0,0.00039178,30]
[392312056,1761325861470,-500.0,0.00039178,30]
[392312057,1761325861480,-425.933368,0.00039178,120]
[392312058,1761325861488,-638.3,0.00039178,30]
[392312059,1761325861497,-500.0,0.00039178,30]
[392312060,1761325861507,-425.933368,0.00039178,120]
[392312061,1761325861516,-500.0,0.00039178,30]
[392312062,1761325861526,-500.0,0.00039178,30]
[392312063,1761325861536,-500.0,0.00039178,30]
[392312064,1761325861546,-522.06,0.00039178,30]
[392312065,1761325861555,-500.0,0.00039178,30]
[392312066,1761325861565,-500.0,0.00039178,30]
[392312067,1761325861575,-500.0,0.00039178,30]
[392312068,1761325861584,-500.0,0.00039178,30]
[392312069,1761325861594,-500.0,0.00039178,30]
[392312070,1761325861607,-500.0,0.00039178,30]
[392312071,1761325861617,-500.0,0.00039178,30]
[392312072,1761325861627,-159.127829,0.00039178,120]
[392312073,1761325861637,-151.0,0.00039178,120]
[392312074,1761325861647,-500.0,0.00039178,30]
[392312075,1761325861657,-159.127829,0.00039178,120]
[392312076,1761325861667,-500.0,0.00039178,30]
[392312077,1761325861676,-151.0,0.00039178,120]
[392312078,1761325861687,-605.13,0.00039178,30]
[392312079,1761325861696,-500.0,0.00039178,30]
[392312080,1761325861706,-159.127829,0.00039178,120]
[392312081,1761325861716,-500.0,0.00039178,30]
[392312082,1761325861725,-159.127829,0.00039178,120]
[392312083,1761325861735,-500.0,0.00039178,30]
[392312084,1761325861745,-500.0,0.00039178,30]
[392312085,1761325861755,-500.0,0.00039178,30]
[392312086,1761325861764,-528.41,0.00039178,30]
[392312087,1761325861774,-500.0,0.00039178,30]
[392312088,1761325861783,-500.0,0.00039178,30]
[392312089,1761325861793,-500.0,0.00039178,30]
[392312090,1761325861802,-500.0,0.00039178,30]
[392312091,1761325861811,-931.19,0.00039178,30]
[392312092,1761325861821,-584.96,0.00039178,30]
[392312093,1761325861831,-168.61578,0.00039178,120]
[392312094,1761325861840,-500.0,0.00039178,30]
[392312095,1761325861852,-500.0,0.00039178,30]
[392312096,1761325861862,-500.0,0.00039178,30]
[392312097,1761325861872,-500.0,0.00039178,30]
[392312098,1761325861882,-500.0,0.00039178,30]
[392312099,1761325861892,-500.0,0.00039178,30]
[392312100,1761325861902,-500.0,0.00039178,30]
[392312101,1761325861912,-500.0,0.00039178,30]
[392312102,1761325861921,-500.0,0.00039178,30]
[392312103,1761325861931,-500.0,0.00039178,30]
[392312104,1761325861942,-692.94,0.00039178,30]
[392312105,1761325861951,-500.0,0.00039178,30]
[392312106,1761325861961,-500.0,0.00039178,30]
[392312107,1761325861970,-707.52,0.00039178,30]
[392312108,1761325861980,-338.28099946,0.00039178,30]
[392312109,1761325861990,-32333.82,0.00039178,30]
[392312110,1761325861999,-574.62,0.00039178,30]
[392312111,1761325862009,-500.0,0.00039178,30]
[392312112,1761325862019,-246.1501512,0.00039178,30]
[392312113,1761325862028,-679.35,0.00039178,30]
[392312114,1761325862038,-500.0,0.00039178,30]
[392312115,1761325862048,-500.0,0.00039178,30]
[392312116,1761325862058,-500.0,0.00039178,30]
[392312117,1761325862067,-500.0,0.00039178,30]
[392312118,1761325862080,-547.41,0.00039178,30]
[392312119,1761325862090,-500.0,0.00039178,30]
[392312120,1761325862101,-506.32,0.00039178,30]
[392312121,1761325862112,-500.0,0.00039178,30]
[392312122,1761325862123,-500.0,0.00039178,30]
[392312123,1761325862133,-500.0,0.00039178,30]
[392312124,1761325862142,-500.0,0.00039178,30]
[392312125,1761325862152,-500.0,0.00039178,30]
[392312126,1761325862164,-500.0,0.00039178,30]
[392312127,1761325862173,-500.0,0.00039178,30]
[392312128,1761325862183,-500.0,0.00039178,30]
[392312129,1761325862192,-500.0,0.00039178,30]
[392312130,1761325862202,-444.12960616,0.00039178,30]
[392312131,1761325862211,-500.0,0.00039178,30]
[392312132,1761325862221,-500.0,0.00039178,30]
[392312133,1761325862230,-1035.21,0.00039178,30]
[392312134,1761325862240,-500.0,0.00039178,30]
[392312135,1761325862249,-500.0,0.00039178,30]
[392312136,1761325862259,-638.34,0.00039178,30]
[392312137,1761325862269,-5592.43696,0.00039178,2]
[392312138,1761325862279,-500.0,0.00039178,30]
[392312139,1761325862289,-500.0,0.00039178,30]
[392312140,1761325862299,-500.0,0.00039178,30]
[392312141,1761325862308,-500.0,0.00039178,30]
[392312142,1761325862318,-836.98,0.00039178,30]
[392312143,1761325862328,-500.0,0.00039178,30]
[392312144,1761325862337,-500.0,0.00039178,30]
[392312145,1761325862412,-500.0,0.00039178,30]
[392312146,1761325862422,-500.0,0.00039178,30]
[392312147,1761325862431,-500.0,0.00039178,30]
[392312148,1761325862441,-1577.85,0.00039178,30]
[392312149,1761325862450,-500.0,0.00039178,30]
[392312150,1761325862459,-525.05,0.00039178,30]
[392312151,1761325862469,-500.0,0.00039178,30]
[392312152,1761325862479,-500.0,0.00039178,30]
[392312153,1761325862490,-500.0,0.00039178,30]
[392312154,1761325862499,-500.0,0.00039178,30]
[392312155,1761325862509,-547.37,0.00039178,30]
[392312156,1761325862519,-500.0,0.00039178,30]
[392312157,1761325862528,-592.77,0.000392,14]
[392312158,1761325862538,-157.66073904,0.00039211,15]
[392312159,1761325862548,-500.0,0.0003922,30]
[392312160,1761325862558,-410.64907156,0.00039221,5]
[392312161,1761325862567,-1017.37453729,0.00039221,2]
[392312162,1761325862576,-696.87269476,0.00039221,5]
[392312163,1761325862585,-1000.0,0.00039221,5]
[392312164,1761325862595,-500.0,0.00039271,30]
[392312165,1761325862605,-150.0,0.00039302,7]
[392312166,1761325862615,-10842.1047218,0.00039326,2]
[392312167,1761325862624,-9269.0602361,0.00039326,2]
[392312168,1761325862634,-937.5293508,0.00039326,2]
[392312169,1761325862643,-1095.543567,0.00039326,2]
[392312170,1761325862653,-500.0,0.00039338,30]
[392312171,1761325862663,-151.0,0.00039339,14]
[392312172,1761325862673,-151.0,0.00039342,120]
[392312173,1761325862682,-200.714542,0.00039342,120]
[392312174,1761325862693,-151.0,0.00039342,120]
[392312175,1761325862702,-152.617569,0.00039342,120]
[392312176,1761325862712,-151.0,0.00039342,120]
[392312177,1761325862722,-151.0,0.00039342,120]
[392312178,1761325862731,-151.0,0.00039342,120]
[392312179,1761325862742,-151.0,0.00039342,120]
[392312180,1761325862751,-151.0,0.00039342,120]
[392312181,1761325862761,-151.0,0.00039342,120]
[392312182,1761325862770,-171.089952,0.00039342,120]
[392312183,1761325862779,-33170.7581,0.00039342,2]
[392312184,1761325862789,-6772.12420123,0.00039352,2]
[392312185,1761325862798,-500.0,0.00039372,30]
[392312186,1761325862808,-500.0,0.00039403,30]
[392312187,1761325862817,-151.0,0.0003942,2]
[392312188,1761325862827,-230.74345409,0.00039441,30]
[392312189,1761325862836,-610.13,0.00039441,30]
[392312190,1761325862845,-500.0,0.00039441,30]
[392312191,1761325862856,-500.0,0.00039441,30]
[392312192,1761325862866,-500.0,0.00039441,30]
[392312193,1761325862875,-500.0,0.00039441,30]
[392312194,1761325862884,-500.0,0.00039441,30]
[392312195,1761325862894,-500.0,0.00039441,30]
[392312196,1761325862903,-500.0,0.00039441,30]
[392312197,1761325862913,-500.0,0.00039441,30]
[392312198,1761325862922,-500.0,0.00039441,30]
[392312199,1761325862932,-500.0,0.00039441,30]
[392312200,1761325862942,-500.0,0.00039441,30]
[392312201,1761325862951,-500.0,0.00039441,30]
[392312202,1761325862960,-500.0,0.00039441,30]
[392312203,1761325862969,-500.0,0.00039441,30]
[392312204,1761325862977,-500.0,0.00039441,30]
[392312205,1761325862986,-500.0,0.00039441,30]
[392312206,1761325862995,-500.0,0.00039441,30]
[392312207,1761325863003,-500.0,0.00039441,30]
[392312208,1761325863012,-500.0,0.00039441,30]
[392312209,1761325863021,-500.0,0.00039441,30]
[392312210,1761325863030,-500.0,0.00039441,30]
[392312211,1761325863040,-276.67815138,0.00039441,30]
[392312212,1761325863049,-502.31,0.00039441,30]
[392312213,1761325863058,-771.22,0.00039441,30]
[392312214,1761325863067,-500.0,0.00039441,30]
[392312215,1761325863076,-500.0,0.00039441,30]
[392312216,1761325863090,-500.0,0.00039441,30]
[392312217,1761325863099,-500.0,0.00039441,30]
[392312218,1761325863109,-500.0,0.00039441,30]
[392312219,1761325863118,-500.0,0.00039441,30]
[392312220,1761325863128,-500.65,0.00039441,30]
[392312221,1761325863137,-500.0,0.00039441,30]
[392312222,1761325863147,-500.0,0.00039441,30]
[392312223,1761325863158,-500.0,0.00039441,30]
[392312224,1761325863167,-182.17208723,0.00039441,30]
[392312225,1761325863176,-500.0,0.00039441,30]
[392312226,1761325863185,-500.0,0.00039441,30]
[392312227,1761325863194,-500.0,0.00039441,30]
[392312228,1761325863203,-500.0,0.00039441,30]
[392312229,1761325863212,-500.0,0.00039441,30]
[392312230,1761325863222,-500.0,0.00039441,30]
[392312231,1761325863231,-500.0,0.00039441,30]
[392312232,1761325863241,-500.0,0.00039441,30]
[392312233,1761325863250,-577.44,0.00039441,30]
[392312234,1761325863258,-500.0,0.00039441,30]
[392312235,1761325863268,-500.0,0.00039441,30]
[392312236,1761325863277,-500.0,0.00039441,30]
[392312237,1761325863287,-500.0,0.00039441,30]
[392312238,1761325863296,-500.0,0.00039441,30]
[392312239,1761325863306,-500.0,0.00039441,30]
[392312240,1761325863315,-500.0,0.00039441,30]
[392312241,1761325863324,-500.0,0.00039441,30]
[392312242,1761325863333,-500.0,0.00039441,30]
[392312243,1761325863342,-600.545527,0.00039441,30]
[392312244,1761325863351,-500.0,0.00039441,30]
[392312245,1761325863370,-500.0,0.00039441,30]
[392312246,1761325863382,-152.248476,0.00039441,30]
[392312247,1761325863392,-500.0,0.00039441,30]
[392312248,1761325863402,-190.124099,0.00039441,30]
[392312249,1761325863411,-500.0,0.00039441,30]
[392312250,1761325863421,-500.0,0.00039441,30]
[392312251,1761325863431,-500.0,0.00039441,30]
[392312252,1761325863440,-964.449092,0.00039441,30]
[392312253,1761325863450,-217.87096543,0.00039441,30]
[392312254,1761325863460,-647.94537273,0.00039441,30]
[392312255,1761325863469,-500.0,0.00039441,30]
[392312256,1761325863479,-581.55,0.00039441,30]
[392312257,1761325863488,-500.0,0.00039441,30]
[392312258,1761325863498,-517.86,0.00039441,30]
[392312259,1761325863508,-307.17,0.00039441,2]
[392312260,1761325863518,-500.0,0.00039441,30]
[392312261,1761325863528,-579.72681186,0.00039441,30]
[392312262,1761325863537,-500.0,0.00039441,30]
[392312263,1761325863547,-500.0,0.00039441,30]
[392312264,1761325863556,-500.0,0.00039441,30]
[392312265,1761325863566,-500.0,0.00039441,30]
[392312266,1761325863575,-500.0,0.00039441,30]
[392312267,1761325863585,-500.0,0.00039441,30]
[392312268,1761325863594,-500.0,0.00039441,30]
[392312269,1761325863605,-500.0,0.00039441,30]
[392312270,1761325863614,-521.84,0.00039441,30]
[392312271,1761325863624,-500.0,0.00039441,30]
[392312272,1761325863634,-500.0,0.00039441,30]
[392312273,1761325863643,-500.0,0.00039441,30]
[392312274,1761325863653,-500.0,0.00039441,30]
[392312275,1761325863662,-500.0,0.00039441,30]
[392312276,1761325863672,-536.14,0.00039441,30]
[392312277,1761325863682,-500.0,0.00039441,30]
[392312278,1761325863692,-500.0,0.00039441,30]
[392312279,1761325863702,-535.59,0.00039441,30]
[392312280,1761325863711,-503.67,0.00039441,30]
[392312281,1761325863725,-500.0,0.00039441,30]
[392312282,1761325863735,-500.0,0.00039441,30]
[392312283,1761325863745,-500.0,0.00039441,30]
[392312284,1761325863755,-522.73,0.00039441,30]
[392312285,1761325863765,-557.02,0.00039441,30]
[392312286,1761325863775,-500.0,0.00039441,30]
[392312287,1761325863784,-500.0,0.00039441,30]
[392312288,1761325863794,-500.0,0.00039441,30]
[392312289,1761325863804,-500.0,0.00039441,30]
[392312290,1761325863813,-546.83,0.00039441,30]
[392312291,1761325863822,-379.45958216,0.00039441,30]
[392312292,1761325863832,-500.0,0.00039441,30]
[392312293,1761325863841,-703.24,0.00039441,30]
[392312294,1761325863851,-500.0,0.00039441,30]
[392312295,1761325863861,-500.0,0.00039441,30]
[392312296,1761325863871,-570.11,0.00039441,30]
[392312297,1761325863880,-678.11,0.00039441,30]
[392312298,1761325863890,-627.18,0.00039441,30]
[392312299,1761325863899,-500.0,0.00039441,30]
[392312300,1761325863909,-566.4,0.00039441,30]
[392312301,1761325863919,-500.0,0.00039441,30]
[392312302,1761325863928,-502.32912333,0.00039441,30]
[392312303,1761325863937,-500.0,0.00039441,30]
[392312304,1761325863947,-500.0,0.00039441,30]
[392312305,1761325863956,-500.0,0.00039441,30]
[392312306,1761325863965,-1127.77,0.00039441,30]
[392312307,1761325863975,-591.87,0.00039441,30]
[392312308,1761325863986,-500.0,0.00039441,30]
[392312309,1761325863996,-500.0,0.00039441,30]
[392312310,1761325864006,-500.0,0.00039441,30]
[392312311,1761325864016,-500.0,0.00039441,30]
[392312312,1761325864027,-500.0,0.00039441,30]
[392312313,1761325864036,-500.0,0.00039441,30]
[392312314,1761325864047,-525.35,0.00039441,30]
[392312315,1761325864057,-500.0,0.00039441,30]
[392312316,1761325864067,-500.0,0.00039441,30]
[392312317,1761325864082,-500.0,0.00039441,30]
[392312318,1761325864091,-511.25,0.00039441,30]
[392312319,1761325864102,-500.0,0.00039441,30]
[392312320,1761325864112,-604.16,0.00039441,30]
[392312321,1761325864123,-500.0,0.00039441,30]
[392312322,1761325864133,-500.0,0.00039441,30]
[392312323,1761325864143,-500.0,0.00039441,30]
[392312324,1761325864154,-500.0,0.00039441,30]
[392312325,1761325864163,-500.0,0.00039441,30]
[392312326,1761325864173,-500.0,0.00039441,30]
[392312327,1761325864182,-500.0,0.00039441,30]
[392312328,1761325864192,-500.0,0.00039441,30]
[392312329,1761325864201,-545.3,0.00039441,30]
[392312330,1761325864211,-500.0,0.00039441,30]
[392312331,1761325864222,-585.42049485,0.00039441,30]
[392312332,1761325864231,-500.0,0.00039441,30]
[392312333,1761325864241,-500.0,0.00039441,30]
[392312334,1761325864250,-503.96,0.00039441,30]
[392312335,1761325864260,-500.0,0.00039441,30]
[392312336,1761325864269,-500.0,0.00039441,30]
[392312337,1761325864279,-500.0,0.00039441,30]
[392312338,1761325864292,-500.0,0.00039441,2]
[392312339,1761325864301,-966.88,0.00039441,30]
[392312340,1761325864311,-767.81,0.00039441,30]
[392312341,1761325864320,-500.0,0.00039441,30]
[392312342,1761325864330,-500.0,0.00039441,30]
[392312343,1761325864339,-500.0,0.00039441,30]
[392312344,1761325864348,-500.0,0.00039441,30]
[392312345,1761325864358,-774.95,0.00039441,30]
[392312346,1761325864368,-500.0,0.00039441,30]
[392312347,1761325864378,-500.0,0.00039441,30]
[392312348,1761325864387,-500.0,0.00039441,30]
[392312349,1761325864398,-500.0,0.00039441,30]
[392312350,1761325864407,-500.0,0.00039441,30]
[392312351,1761325864416,-500.0,0.00039441,30]
[392312352,1761325864427,-500.0,0.00039441,30]
[392312353,1761325864437,-500.0,0.00039441,30]
[392312354,1761325864446,-500.0,0.00039441,30]
[392312355,1761325864457,-500.0,0.00039441,30]
[392312356,1761325864466,-500.0,0.00039441,30]
[392312357,1761325864479,-2333.2,0.00039441,30]
[392312358,1761325864489,-500.0,0.00039441,30]
[392312359,1761325864499,-586.06,0.00039441,30]
[392312360,1761325864509,-500.0,0.00039441,30]
[392312361,1761325864518,-334.5472959,0.00039441,3]
[392312362,1761325864529,-540.11,0.00039441,30]
[392312363,1761325864538,-500.0,0.00039441,30]
[392312364,1761325864548,-708.78,0.00039441,30]
[392312365,1761325864558,-342.96610045,0.00039441,3]
[392312366,1761325864568,-500.0,0.00039441,3]
[392312367,1761325864578,-500.0,0.00039441,3]
[392312368,1761325864588,-500.0,0.00039441,3]
[392312369,1761325864598,-500.0,0.00039441,3]
[392312370,1761325864608,-500.0,0.00039441,3]
[392312371,1761325864618,-500.0,0.00039441,30]
[392312372,1761325864628,-500.0,0.00039441,30]
[392312373,1761325864637,-500.0,0.00039441,30]
[392312374,1761325864647,-645.2214,0.00039441,3]
[392312375,1761325864657,-669.0945918,0.00039441,3]
[392312376,1761325864666,-693.8510917,0.00039441,3]
[392312377,1761325864680,-719.52358209,0.00039441,3]
[392312378,1761325864689,-746.14595463,0.00039441,3]
[392312379,1761325864698,-500.0,0.00039441,30]
[392312380,1761325864708,-773.75335495,0.00039441,3]
[392312381,1761325864720,-802.38222908,0.00039441,3]
[392312382,1761325864731,-832.07037156,0.00039441,3]
[392312383,1761325864741,-862.8569753,0.00039441,3]
[392312384,1761325864750,-894.78268339,0.00039441,3]
[392312385,1761325864760,-594.91,0.00039441,30]
[392312386,1761325864770,-927.88964268,0.00039441,3]
[392312387,1761325864779,-614.18,0.00039441,30]
[392312388,1761325864789,-962.22155946,0.00039441,3]
[392312389,1761325864799,-997.82375716,0.00039441,3]
[392312390,1761325864810,-1034.74323617,0.00039441,3]
[392312391,1761325864820,-1073.02873591,0.00039441,3]
[392312392,1761325864830,-1112.73079914,0.00039441,3]
[392312393,1761325864840,-500.0,0.00039441,30]
[392312394,1761325864850,-500.0,0.00039441,30]
[392312395,1761325864863,-530.62,0.00039441,30]
[392312396,1761325864873,-500.0,0.00039441,30]
[392312397,1761325864883,-500.0,0.00039441,30]
[392312398,1761325864893,-511.0,0.00039441,30]
[392312399,1761325864903,-500.0,0.00039441,30]
[392312400,1761325864912,-500.0,0.00039441,30]
[392312401,1761325864922,-500.0,0.00039441,30]
[392312402,1761325864931,-500.0,0.00039441,30]
[392312403,1761325864940,-500.0,0.00039441,30]
[392312404,1761325864950,-500.0,0.00039441,30]
[392312405,1761325864960,-500.0,0.00039441,30]
[392312406,1761325864969,-500.0,0.00039441,30]
[392312407,1761325864980,-527.71,0.00039441,30]
[392312408,1761325864989,-561.73346336,0.00039441,30]
[392312409,1761325864999,-500.0,0.00039441,30]
[392312410,1761325865009,-500.0,0.00039441,30]
[392312411,1761325865018,-732.55,0.00039441,30]
[392312412,1761325865029,-500.0,0.00039441,30]
[392312413,1761325865038,-500.0,0.00039441,30]
[392312414,1761325865048,-500.0,0.00039441,30]